bitfinex/quotes_BTCUSD_20240723
["timestamp","ask_amount","ask_price","bid_price","bid_amount"]
[1721757064210,0.010822,65911.0,65910.0,0.001]
[1721757064425,8e-05,65911.0,65910.0,0.001]
[1721757064671,0.011822,65911.0,65910.0,0.004]
[1721757064881,0.012822,65911.0,65910.0,0.01]
[1721757065084,0.011822,65911.0,65910.0,0.006]
[1721757065290,0.010822,65911.0,65908.0,0.151726]
[1721757065501,0.010822,65911.0,65904.0,0.303468]
[1721757065502,0.010822,65911.0,65905.0,0.303466]
[1721757065713,0.014822,65911.0,65910.0,0.151722]
[1721757065969,0.014822,65911.0,65910.0,1.10461248]
[1721757065970,0.015822,65911.0,65910.0,1.10461248]
[1721757066191,0.010822,65911.0,65910.0,1.80540048]
[1721757066393,0.010822,65911.0,65910.0,1.64891913]
[1721757066394,8e-05,65911.0,65910.0,1.64891913]
[1721757066603,8e-05,65911.0,65910.0,1.52293656]
[1721757066604,0.00408,65911.0,65910.0,1.52293656]
[1721757066817,0.00408,65911.0,65910.0,1.64889761]
[1721757067046,0.15109991,65911.0,65904.0,0.15]
[1721757067269,0.52363233,65888.0,65887.0,0.000924]
[1721757067479,1.56881354,65888.0,65887.0,0.000924]
[1721757067699,1.49826733,65888.0,65887.0,0.000924]
[1721757067913,1.27039241,65888.0,65887.0,0.000924]
[1721757068564,0.96684741,65888.0,65887.0,0.000924]
[1721757068785,1.27039241,65888.0,65887.0,0.000924]
[1721757068995,1.43141232,65888.0,65887.0,0.000924]
[1721757069203,1.88093895,65888.0,65887.0,0.000924]
[1721757069404,2.63691689,65888.0,65887.0,0.000924]
[1721757069610,2.57294978,65888.0,65887.0,0.001924]
[1721757069863,2.50495732,65888.0,65887.0,0.001924]
[1721757070326,2.57295469,65888.0,65887.0,0.001924]
[1721757070554,0.07487008,65888.0,65887.0,0.001924]
[1721757070769,0.07487008,65888.0,65887.0,0.000924]
[1721757070983,0.10787041,65888.0,65887.0,0.000924]
[1721757071270,0.07491008,65888.0,65887.0,0.000924]
[1721757071484,0.10291008,65888.0,65887.0,0.000924]
[1721757071700,0.12187041,65888.0,65887.0,0.000924]
[1721757071929,0.27364241,65888.0,65887.0,0.000924]
[1721757072150,0.57618741,65888.0,65887.0,0.000924]
[1721757072376,0.56218741,65888.0,65887.0,0.000924]
[1721757072837,0.57418741,65888.0,65887.0,0.000924]
[1721757073060,0.85808741,65888.0,65887.0,0.000924]
[1721757073283,1.16163241,65888.0,65887.0,0.000924]
[1721757073736,0.12887041,65888.0,65887.0,0.000924]
[1721757074187,0.12887041,65888.0,65887.0,0.456249]
[1721757074399,0.11887041,65888.0,65887.0,0.000924]
[1721757074606,0.10800033,65888.0,65887.0,0.000924]
[1721757074816,0.11857514,65888.0,65887.0,0.152699]
[1721757075024,0.11857514,65888.0,65887.0,0.000924]
[1721757075427,0.11857514,65888.0,65887.0,0.456249]
[1721757075631,0.11857514,65888.0,65887.0,0.001924]
[1721757075632,0.12757514,65888.0,65887.0,0.001924]
[1721757076063,0.92954715,65888.0,65887.0,0.001924]
[1721757076268,1.16033714,65888.0,65887.0,0.001924]
[1721757076474,0.85679214,65888.0,65887.0,0.001924]
[1721757076885,0.55324714,65888.0,65887.0,0.001924]
[1721757077087,0.27934714,65888.0,65887.0,0.001924]
[1721757077296,0.12757514,65888.0,65887.0,0.001924]
[1721757077500,0.12757514,65888.0,65887.0,0.153699]
[1721757077776,0.11700033,65888.0,65887.0,0.001924]
[1721757077965,0.11700033,65888.0,65887.0,0.024924]
[1721757078167,0.12757514,65888.0,65887.0,0.176699]
[1721757078373,0.12757514,65888.0,65887.0,0.024924]
[1721757078591,0.11700033,65888.0,65887.0,0.024924]
[1721757078795,0.12757514,65888.0,65887.0,0.176699]
[1721757078998,0.12757514,65888.0,65887.0,0.024924]
[1721757079205,0.12737514,65888.0,65887.0,0.024924]
[1721757079811,0.12737514,65888.0,65887.0,0.176699]
[1721757080017,0.12737514,65888.0,65887.0,0.480249]
[1721757080229,0.12737514,65888.0,65887.0,0.176699]
[1721757080438,0.11680033,65888.0,65887.0,0.480249]
[1721757080641,0.11680033,65888.0,65887.0,0.176699]
[1721757080843,0.11680033,65888.0,65887.0,0.480249]
[1721757080844,0.12737514,65888.0,65887.0,0.480249]
[1721757081057,0.12737514,65888.0,65887.0,0.54312711]
[1721757081266,0.11680033,65888.0,65887.0,0.480249]
[1721757081677,0.11680033,65888.0,65887.0,0.783799]
[1721757081884,0.03404,65888.0,65887.0,1.23436891]
[1721757082093,0.03404,65888.0,65887.0,1.37296891]
[1721757082302,0.03404,65888.0,65887.0,2.38010044]
[1721757082517,0.4688,65904.0,65903.0,0.75869]
[1721757082518,0.5186,65904.0,65903.0,0.75869]
[1721757082722,0.03296033,65905.0,65903.0,0.75869]
[1721757082723,0.08276033,65905.0,65904.0,0.758677]
[1721757082929,0.08276033,65905.0,65904.0,0.455206]
[1721757083139,0.08276033,65905.0,65904.0,0.5540755]
[1721757083352,0.08276033,65905.0,65904.0,0.478206]
[1721757083769,0.08276033,65905.0,65904.0,0.560206]
[1721757084030,0.03296033,65905.0,65904.0,0.927477]
[1721757084472,0.08276033,65905.0,65904.0,0.624006]
[1721757084697,0.08276033,65905.0,65904.0,0.7471038]
[1721757085117,0.08276033,65905.0,65904.0,0.7481038]
[1721757085318,0.08276033,65905.0,65904.0,0.4446328]
[1721757085503,0.08276033,65905.0,65904.0,0.1698]
[1721757085706,0.08276033,65905.0,65904.0,0.627006]
[1721757086809,0.08276033,65905.0,65904.0,0.1718]
[1721757087050,0.08276033,65905.0,65904.0,0.323535]
[1721757087992,0.08280033,65905.0,65904.0,0.323535]
[1721757088433,0.09340199,65905.0,65904.0,0.930477]
[1721757088638,0.09340199,65905.0,65904.0,0.67208699]
[1721757088849,0.08280033,65905.0,65904.0,0.67208699]
[1721757089055,0.08280033,65905.0,65904.0,0.36861599]
[1721757089681,0.39686899,65905.0,65904.0,0.003]
[1721757089897,1.19196899,65905.0,65904.0,0.003]
[1721757090115,2.36543599,65905.0,65904.0,0.003]
[1721757090339,1.78806899,65905.0,65904.0,0.003]
[1721757090545,0.09340199,65905.0,65904.0,0.003]
[1721757090750,0.24513499,65905.0,65904.0,0.002]
[1721757090931,0.08276033,65900.0,65899.0,0.151746]
[1721757091132,0.08276033,65900.0,65899.0,0.174746]
[1721757091472,0.09343153,65900.0,65899.0,0.174746]
[1721757091690,0.09343153,65900.0,65899.0,0.023]
[1721757091866,0.08276033,65899.0,65898.0,0.023]
[1721757092105,0.06056785,65899.0,65898.0,0.023]
[1721757092351,0.01076785,65899.0,65898.0,1.04636691]
[1721757092575,0.01076785,65899.0,65898.0,1.50762473]
[1721757092828,4e-05,65905.0,65904.0,0.455206]
[1721757093036,4e-05,65905.0,65904.0,0.92869691]
[1721757093666,0.03300033,65905.0,65904.0,0.92869691]
[1721757094221,4e-05,65905.0,65904.0,0.92869691]
[1721757094424,0.03300033,65905.0,65904.0,1.051915]
[1721757094611,0.03300033,65905.0,65904.0,0.92869691]
[1721757094815,0.08280033,65905.0,65904.0,0.174735]
[1721757095199,0.08276033,65899.0,65893.0,0.3792026]
[1721757095425,0.08276033,65894.0,65893.0,0.0091816]
[1721757095629,0.08276033,65894.0,65893.0,0.1609426]
[1721757095801,0.08276033,65893.0,65892.0,0.455289]
[1721757096644,0.08276033,65889.0,65888.0,0.08779322]
[1721757096845,0.08276033,65889.0,65888.0,0.54311022]
[1721757097047,0.09174151,65889.0,65888.0,0.84665522]
[1721757097262,0.04194151,65889.0,65888.0,1.08482545]
[1721757097472,0.08276033,65892.0,65891.0,1.062358]
[1721757097675,0.0508,65894.0,65893.0,0.455283]
[1721757097882,0.08276033,65894.0,65893.0,0.90582491]
[1721757098020,0.0498,65894.0,65893.0,1.03860176]
[1721757098221,0.08276033,65894.0,65893.0,1.03860176]
[1721757099592,0.08276033,65894.0,65893.0,0.92882491]
[1721757099852,0.03296033,65894.0,65893.0,0.92882491]
[1721757100581,0.08376033,65894.0,65893.0,0.03]
[1721757100991,0.09274151,65894.0,65893.0,0.03]
[1721757101195,0.24349951,65894.0,65893.0,0.023]
[1721757101395,0.08276033,65889.0,65888.0,0.000924]
[1721757101963,0.09174151,65889.0,65888.0,0.000924]
[1721757102714,0.09174151,65889.0,65888.0,0.013924]
[1721757102942,0.09174151,65889.0,65888.0,0.023924]
[1721757103281,0.09174151,65889.0,65888.0,0.000924]
[1721757103717,1.12449151,65889.0,65888.0,0.000924]
[1721757103915,1.42803151,65889.0,65888.0,0.000924]
[1721757104133,1.42803151,65889.0,65888.0,0.001924]
[1721757104701,1.42803151,65889.0,65888.0,0.000924]
[1721757105022,1.57613151,65889.0,65888.0,0.002924]
[1721757105381,1.57013151,65889.0,65888.0,0.001924]
[1721757105604,1.87367151,65889.0,65888.0,0.001924]
[1721757105806,2.32423142,65889.0,65888.0,0.001924]
[1721757106007,2.73069142,65889.0,65888.0,0.001924]
[1721757106604,2.78069142,65889.0,65888.0,0.001924]
[1721757106959,2.73069142,65889.0,65888.0,0.001924]
[1721757107099,3.18423034,65889.0,65888.0,0.001924]
[1721757107310,2.88069034,65889.0,65888.0,0.000924]
[1721757107510,2.83669142,65889.0,65888.0,0.001924]
[1721757107711,2.89269034,65889.0,65888.0,0.002924]
[1721757107983,2.93069034,65889.0,65888.0,0.000924]
[1721757108184,3.04396892,65889.0,65888.0,0.000924]
[1721757108317,2.95069034,65889.0,65888.0,0.002924]
[1721757108514,2.95069034,65889.0,65888.0,0.001924]
[1721757108515,1.86349151,65889.0,65888.0,0.001924]
[1721757108815,0.56105151,65889.0,65888.0,0.001924]
[1721757109019,0.11174151,65889.0,65888.0,0.002924]
[1721757109250,0.56105151,65889.0,65888.0,0.001924]
[1721757109457,0.10574151,65889.0,65888.0,0.001924]
[1721757109811,0.25751151,65889.0,65888.0,0.001924]
[1721757110210,0.10574151,65889.0,65888.0,0.001924]
[1721757110570,0.85659151,65889.0,65888.0,0.001924]
[1721757110755,0.24951151,65889.0,65888.0,0.001924]
[1721757110956,0.10574151,65889.0,65888.0,0.001924]
[1721757111211,0.11174151,65889.0,65888.0,0.002924]
[1721757112114,0.11174151,65889.0,65888.0,0.480241]
[1721757112115,0.10574151,65889.0,65888.0,0.480241]
[1721757112330,0.10574151,65889.0,65888.0,0.025924]
[1721757112331,0.09676033,65889.0,65888.0,0.025924]
[1721757112549,0.11010036,65889.0,65888.0,0.177696]
[1721757112765,0.09610036,65889.0,65888.0,0.024924]
[1721757112977,0.09610036,65889.0,65888.0,0.001924]
[1721757113394,0.09610036,65889.0,65888.0,0.153696]
[1721757113602,0.06314003,65889.0,65888.0,0.932886]
[1721757113815,0.06314003,65889.0,65888.0,0.629341]
[1721757113816,0.09610036,65889.0,65888.0,0.629341]
[1721757114035,0.09610036,65889.0,65888.0,1.08090591]
[1721757114036,0.013,65889.0,65888.0,1.08090591]
[1721757114252,0.013,65889.0,65888.0,1.38345091]
[1721757114253,0.007,65889.0,65888.0,1.38345091]
[1721757114469,4e-05,65894.0,65888.0,0.77055156]
[1721757114671,0.006,65889.0,65888.0,1.05805067]
[1721757114875,0.007,65889.0,65888.0,1.447961]
[1721757115080,0.009,65889.0,65888.0,1.59498091]
[1721757115287,0.00904,65889.0,65888.0,1.50761558]
[1721757115488,0.00204,65889.0,65888.0,1.59547684]
[1721757115768,0.00204,65889.0,65888.0,1.59747684]
[1721757115960,4e-05,65889.0,65888.0,1.59647684]
[1721757116497,4e-05,65889.0,65888.0,1.07936919]
[1721757116731,0.08280033,65889.0,65888.0,0.258272]
[1721757116948,0.08280033,65889.0,65888.0,0.257272]
[1721757117149,0.09014036,65889.0,65888.0,0.023]
[1721757117316,0.08276033,65888.0,65887.0,0.000924]
[1721757117515,0.08276033,65888.0,65887.0,0.175699]
[1721757117717,0.08276033,65888.0,65887.0,0.479249]
[1721757118326,0.03296033,65888.0,65887.0,0.62626891]
[1721757118524,0.03296033,65888.0,65887.0,1.02410231]
[1721757119137,4e-05,65889.0,65888.0,0.455317]
[1721757119353,4e-05,65889.0,65888.0,0.62533691]
[1721757119588,4e-05,65889.0,65887.0,0.024924]
[1721757119589,1.14516733,65888.0,65887.0,0.001924]
[1721757119768,0.91511175,65888.0,65887.0,0.001924]
[1721757119966,0.91511175,65888.0,65887.0,0.000924]
[1721757119967,0.54541736,65888.0,65887.0,0.000924]
[1721757120373,0.24187236,65888.0,65887.0,0.000924]
[1721757120577,0.54541736,65888.0,65887.0,0.000924]
[1721757120744,1.15250736,65888.0,65887.0,0.000924]
[1721757121309,2.45807227,65888.0,65887.0,0.000924]
[1721757121541,1.58284303,65888.0,65887.0,0.000924]
[1721757121739,1.4667391,65888.0,65887.0,0.000924]
[1721757121988,1.40670736,65888.0,65887.0,0.001924]
[1721757122201,1.41270736,65888.0,65887.0,0.002924]
[1721757122406,0.80561736,65888.0,65887.0,0.001924]
[1721757122609,0.71701736,65888.0,65887.0,0.001924]
[1721757122816,1.36945741,65888.0,65887.0,0.001924]
[1721757123062,1.53915901,65888.0,65887.0,0.001924]
[1721757123266,1.31610736,65888.0,65887.0,0.000924]
[1721757123471,1.3841391,65888.0,65887.0,0.000924]
[1721757123679,1.32910736,65888.0,65887.0,0.001924]
[1721757123888,1.33510736,65888.0,65887.0,0.002924]
[1721757124291,0.93156236,65888.0,65887.0,0.002924]
[1721757125576,1.23510736,65888.0,65887.0,0.002924]
[1721757125772,0.93156236,65888.0,65887.0,0.002924]
[1721757126187,1.23510736,65888.0,65887.0,0.002924]
[1721757126327,0.93156236,65888.0,65887.0,0.002924]
[1721757126982,1.23510736,65888.0,65887.0,0.002924]
[1721757127530,0.93156236,65888.0,65887.0,0.002924]
[1721757128765,0.10910036,65888.0,65887.0,0.458249]
[1721757128973,0.10910036,65888.0,65887.0,0.002924]
[1721757129174,0.56441736,65888.0,65887.0,0.002924]
[1721757129346,0.26087236,65888.0,65887.0,0.002924]
[1721757129548,0.56441736,65888.0,65887.0,0.002924]
[1721757129733,0.10910036,65888.0,65887.0,0.002924]
[1721757129930,0.09590036,65888.0,65887.0,0.153699]
[1721757130156,0.09590036,65888.0,65887.0,0.1921613]
[1721757130354,0.10156033,65888.0,65887.0,0.1931613]
[1721757130556,0.10888257,65888.0,65887.0,0.4967113]
[1721757130791,0.08856033,65888.0,65887.0,0.4957113]
[1721757130994,0.08856033,65888.0,65887.0,0.7992613]
[1721757131683,0.08856033,65888.0,65887.0,0.783799]
[1721757131948,0.0498,65888.0,65887.0,0.928299]
[1721757132105,4e-05,65889.0,65888.0,0.758862]
[1721757132313,4e-05,65889.0,65888.0,1.32585197]
[1721757132622,4e-05,65889.0,65888.0,1.47281462]
[1721757133056,4e-05,65889.0,65888.0,1.98569929]
[1721757133474,0.00088,65889.0,65888.0,1.98569929]
[1721757133674,0.00188,65889.0,65888.0,1.91845962]
[1721757133875,0.00188,65889.0,65888.0,1.96845962]
[1721757134080,0.00188,65889.0,65888.0,0.76743691]
[1721757134208,0.53975033,65889.0,65888.0,0.15501988]
[1721757134441,0.53975033,65889.0,65888.0,0.014]
[1721757134442,0.08544033,65889.0,65888.0,0.014]
[1721757134607,0.09293847,65889.0,65888.0,0.014]
[1721757134825,0.08256033,65888.0,65887.0,0.000924]
[1721757135023,0.53787733,65888.0,65887.0,0.000924]
[1721757135429,0.98970775,65888.0,65887.0,0.000924]
[1721757136412,0.24181775,65888.0,65887.0,0.000924]
[1721757136619,0.09004575,65888.0,65887.0,0.000924]
[1721757136830,0.24181775,65888.0,65887.0,0.000924]
[1721757137040,0.09004575,65888.0,65887.0,0.152699]
[1721757137260,0.0558,65888.0,65887.0,0.153699]
[1721757137468,0.08256033,65888.0,65887.0,0.175699]
[1721757137669,0.08989299,65888.0,65887.0,0.175699]
[1721757137873,0.08789299,65888.0,65887.0,0.175699]
[1721757138103,0.08789299,65888.0,65887.0,0.479249]
[1721757138591,0.08789299,65888.0,65887.0,0.175699]
[1721757138738,0.08789299,65888.0,65887.0,0.024924]
[1721757139344,0.09389299,65888.0,65887.0,0.025924]
[1721757139685,0.08789299,65888.0,65887.0,0.024924]
[1721757139890,0.08789299,65888.0,65887.0,0.176699]
[1721757140026,0.08789299,65888.0,65887.0,0.181699]
[1721757140219,0.08789299,65888.0,65887.0,0.484249]
[1721757140420,0.00088,65889.0,65888.0,0.455317]
[1721757140421,0.04868,65889.0,65888.0,0.455317]
[1721757140626,0.00088,65889.0,65888.0,0.92888191]
[1721757141045,0.03364033,65889.0,65888.0,0.92888191]
[1721757141725,0.00088,65889.0,65888.0,0.92888191]
[1721757142202,0.00088,65889.0,65888.0,0.93388191]
[1721757142621,0.03364033,65889.0,65888.0,1.07331538]
[1721757142828,0.00088,65889.0,65888.0,1.07831538]
[1721757143034,0.00088,65889.0,65888.0,1.38186038]
[1721757143798,0.00088,65889.0,65888.0,1.47532059]
[1721757146550,0.00088,65889.0,65888.0,1.47596122]
[1721757146958,0.00088,65889.0,65888.0,1.82950622]
[1721757147178,0.00088,65889.0,65888.0,1.91260622]
[1721757148164,0.00088,65889.0,65888.0,1.97480622]
[1721757149220,0.00088,65889.0,65888.0,2.08542589]
[1721757149422,0.00088,65889.0,65888.0,2.08742589]
[1721757149863,0.00088,65889.0,65888.0,2.08766255]
[1721757150964,0.00088,65889.0,65888.0,2.09045655]
[1721757151171,0.00088,65889.0,65888.0,2.08766255]
[1721757151839,0.00088,65889.0,65888.0,2.06342288]
[1721757152362,0.00088,65889.0,65888.0,2.17766255]
[1721757152804,0.00088,65889.0,65888.0,2.19166255]
[1721757153002,0.00088,65889.0,65888.0,2.1704055]
[1721757153419,0.00188,65889.0,65888.0,2.1844055]
[1721757155295,0.00188,65889.0,65888.0,1.20930203]
[1721757155709,0.00188,65889.0,65888.0,1.51284703]
[1721757156127,0.00188,65889.0,65888.0,1.49884703]
[1721757156334,0.00188,65889.0,65888.0,1.50012987]
[1721757156541,0.00088,65889.0,65888.0,1.50012987]
[1721757156743,0.00188,65889.0,65888.0,1.66109252]
[1721757157154,0.00088,65889.0,65888.0,2.02363752]
[1721757157361,0.00088,65889.0,65888.0,1.70609252]
[1721757157606,0.00188,65889.0,65888.0,1.73409252]
[1721757158000,0.00088,65889.0,65888.0,1.67009252]
[1721757158199,0.00088,65889.0,65888.0,1.72009252]
[1721757158410,0.00188,65889.0,65888.0,1.73409252]
[1721757158990,0.00188,65889.0,65888.0,1.72009252]
[1721757159164,0.00188,65889.0,65888.0,1.73409252]
[1721757159363,0.00188,65889.0,65888.0,1.73361516]
[1721757159564,0.00188,65889.0,65888.0,1.71961516]
[1721757159790,0.00188,65889.0,65888.0,1.73361516]
[1721757160617,0.00188,65889.0,65888.0,2.27284216]
[1721757161658,0.00088,65889.0,65888.0,2.25884216]
[1721757161860,0.00088,65889.0,65888.0,2.24484216]
[1721757162065,0.00188,65889.0,65888.0,1.93605749]
[1721757162291,0.00188,65889.0,65888.0,1.27495365]
[1721757162474,0.00088,65889.0,65888.0,1.19610751]
[1721757162715,0.00088,65889.0,65888.0,1.50346853]
[1721757163023,0.00188,65889.0,65888.0,1.50346853]
[1721757163224,0.00188,65889.0,65888.0,1.19992353]
[1721757163428,0.00088,65889.0,65888.0,1.18592353]
[1721757163604,0.00088,65889.0,65888.0,1.45736853]
[1721757163818,0.00088,65889.0,65888.0,1.44336853]
[1721757163819,0.00188,65889.0,65888.0,1.44336853]
[1721757164033,0.00188,65889.0,65888.0,1.59033118]
[1721757165086,0.00088,65889.0,65888.0,1.57633118]
[1721757165302,0.00188,65889.0,65888.0,1.60433118]
[1721757165578,0.00188,65889.0,65888.0,1.59033118]
[1721757165799,0.00188,65889.0,65888.0,1.591506]
[1721757165997,0.00188,65889.0,65888.0,1.605506]
[1721757166438,0.00188,65889.0,65888.0,1.60643]
[1721757166610,0.98499033,65889.0,65888.0,0.89904044]
[1721757166817,0.23364564,65889.0,65888.0,0.12704044]
[1721757167018,0.38541564,65889.0,65888.0,0.12704044]
[1721757167194,0.38541564,65889.0,65888.0,0.028924]
[1721757167195,0.68895564,65889.0,65888.0,0.028924]
[1721757168020,0.68795564,65889.0,65888.0,0.014924]
[1721757168484,0.68795564,65889.0,65888.0,0.000924]
[1721757168689,0.68895564,65889.0,65888.0,0.000924]
[1721757169148,0.68995564,65889.0,65888.0,0.000924]
[1721757169346,0.23764564,65889.0,65888.0,0.000924]
[1721757169515,0.23564564,65889.0,65888.0,0.000924]
[1721757169715,0.23264564,65889.0,65888.0,0.09813901]
[1721757169920,0.23664564,65889.0,65888.0,0.27291101]
[1721757170144,0.01238531,65889.0,65888.0,1.12126414]
[1721757170349,0.01238531,65889.0,65888.0,1.11822887]
[1721757170679,0.00488,65889.0,65888.0,1.11822887]
[1721757170881,0.03764033,65889.0,65888.0,1.11822887]
[1721757171171,0.03464033,65889.0,65888.0,1.11822887]
[1721757171313,0.00188,65889.0,65888.0,1.11822887]
[1721757171717,0.03464033,65889.0,65888.0,1.11822887]
[1721757172269,0.03464033,65889.0,65888.0,1.12615318]
[1721757172512,0.03464033,65889.0,65888.0,1.04494523]
[1721757172942,0.03364033,65889.0,65888.0,1.03694523]
[1721757173145,0.03464033,65889.0,65888.0,1.04694523]
[1721757175011,0.08244033,65889.0,65888.0,0.28808323]
[1721757175208,0.08244033,65889.0,65888.0,0.19094391]
[1721757175419,0.08991155,65889.0,65888.0,0.28837358]
[1721757175941,0.08891155,65889.0,65888.0,0.27837358]
[1721757176354,0.54522155,65889.0,65888.0,0.11835367]
[1721757176589,0.54522155,65889.0,65888.0,0.020924]
[1721757176793,0.08991155,65889.0,65888.0,0.11796396]
[1721757176934,0.24168155,65889.0,65888.0,0.10796396]
[1721757177131,0.24168155,65889.0,65888.0,0.11796396]
[1721757177335,0.90966155,65889.0,65888.0,0.11796396]
[1721757177549,0.90966155,65889.0,65888.0,0.020924]
[1721757177755,0.90966155,65889.0,65888.0,0.11828924]
[1721757178158,0.90966155,65889.0,65888.0,0.020924]
[1721757178580,0.90219033,65889.0,65888.0,0.020924]
[1721757178839,0.90861478,65889.0,65888.0,0.010924]
[1721757179031,0.98371478,65889.0,65888.0,0.013924]
[1721757179774,1.28725478,65889.0,65888.0,0.013924]
[1721757179924,1.37811416,65889.0,65888.0,0.003924]
[1721757180138,1.28725478,65889.0,65888.0,0.003924]
[1721757180426,1.37812571,65889.0,65888.0,0.006924]
[1721757180623,1.35539711,65889.0,65888.0,0.006924]
[1721757180827,1.28725478,65889.0,65888.0,0.003924]
[1721757180951,1.29225478,65889.0,65888.0,0.004924]
[1721757181173,1.40582901,65889.0,65888.0,0.004924]
[1721757181392,1.29225478,65889.0,65888.0,0.003924]
[1721757181805,1.29225478,65889.0,65888.0,0.001924]
[1721757181806,1.29725478,65889.0,65888.0,0.001924]
[1721757182044,1.29325478,65889.0,65888.0,0.001924]
[1721757182291,1.40681752,65889.0,65888.0,0.001924]
[1721757182582,1.40081752,65889.0,65888.0,0.000924]
[1721757182772,1.54783743,65889.0,65888.0,0.000924]
[1721757182993,1.40881752,65889.0,65888.0,0.001924]
[1721757183456,1.40881752,65889.0,65888.0,0.000924]
[1721757183457,1.40081752,65889.0,65888.0,0.000924]
[1721757183684,1.40081752,65889.0,65888.0,0.002924]
[1721757183685,1.29925478,65889.0,65888.0,0.002924]
[1721757183933,1.29525478,65889.0,65888.0,0.001924]
[1721757184200,0.61307478,65889.0,65888.0,0.001924]
[1721757187046,0.09886478,65889.0,65888.0,0.025924]
[1721757187480,0.09886478,65889.0,65888.0,0.023924]
[1721757187481,0.08886478,65889.0,65888.0,0.023924]
[1721757187682,0.08886478,65889.0,65888.0,0.175696]
[1721757187896,0.08986478,65889.0,65888.0,0.175696]
[1721757188116,0.08986478,65889.0,65888.0,0.10315034]
[1721757188341,0.08986478,65889.0,65888.0,0.175696]
[1721757188582,0.08986478,65889.0,65888.0,0.023924]
[1721757188811,0.08986478,65889.0,65888.0,0.000924]
[1721757189037,0.08986478,65889.0,65888.0,0.152696]
[1721757189254,0.08986478,65889.0,65888.0,0.175696]
[1721757189659,0.08986478,65889.0,65888.0,0.19954125]
[1721757189862,0.08986478,65889.0,65888.0,0.479241]
[1721757190921,0.05710445,65889.0,65888.0,0.92980591]
[1721757191398,0.00188,65889.0,65888.0,1.37215091]
[1721757191613,0.00188,65889.0,65888.0,1.46758507]
[1721757192232,0.00088,65889.0,65888.0,1.46758507]
[1721757192431,0.00088,65889.0,65888.0,1.47958507]
[1721757193062,0.00188,65889.0,65888.0,1.49158507]
[1721757193450,0.00188,65889.0,65888.0,1.63854772]
[1721757193655,0.00188,65889.0,65888.0,1.47958507]
[1721757194270,0.00188,65889.0,65888.0,1.69358507]
[1721757194693,0.00188,65889.0,65888.0,1.68925289]
[1721757195738,0.00188,65889.0,65888.0,1.67525289]
[1721757195944,0.00188,65889.0,65888.0,1.80202215]
[1721757196589,0.00188,65889.0,65888.0,1.67525289]
[1721757196796,0.00188,65889.0,65888.0,1.47525289]
[1721757197006,0.00188,65889.0,65888.0,1.48725289]
[1721757197890,0.00188,65889.0,65888.0,1.4868533]
[1721757199545,0.03464033,65889.0,65888.0,1.1221083]
[1721757199962,0.03464033,65889.0,65888.0,1.0445083]
[1721757200161,0.08244033,65889.0,65888.0,0.29039839]
[1721757200587,0.8487305,65889.0,65888.0,0.11562639]
[1721757200792,0.8487305,65889.0,65888.0,0.024924]
[1721757200992,0.5451905,65889.0,65888.0,0.024924]
[1721757201408,0.0898805,65889.0,65888.0,0.024924]
[1721757201613,0.0898805,65889.0,65888.0,0.176696]
[1721757201832,0.0898805,65889.0,65888.0,0.024924]
[1721757202031,0.0898805,65889.0,65888.0,0.187696]
[1721757202210,0.0898805,65889.0,65888.0,0.197696]
[1721757202445,0.0898805,65889.0,65888.0,0.045924]
[1721757202661,0.2416505,65889.0,65888.0,0.045924]
[1721757202865,0.2416505,65889.0,65888.0,0.033924]
[1721757202866,0.2406505,65889.0,65888.0,0.033924]
[1721757203271,0.17265522,65888.0,65887.0,0.000924]
[1721757203887,0.18009539,65888.0,65887.0,0.000924]
[1721757204501,0.18009539,65888.0,65887.0,0.152699]
[1721757204711,0.13329539,65888.0,65887.0,0.467249]
[1721757204917,0.18109539,65888.0,65887.0,1.08272806]
[1721757205118,0.18109539,65888.0,65887.0,1.17334628]
[1721757205295,0.17365522,65888.0,65887.0,1.19634628]
[1721757205542,0.12585522,65888.0,65887.0,1.19634628]
[1721757206340,0.09309489,65888.0,65887.0,1.11843713]
[1721757206545,0.12585522,65888.0,65887.0,1.42198713]
[1721757207171,0.12585522,65888.0,65887.0,1.33136891]
[1721757207383,0.09309489,65888.0,65887.0,1.4218393]
[1721757207796,0.09309489,65888.0,65887.0,1.49502289]
[1721757208212,0.09309489,65888.0,65887.0,1.4218393]
[1721757210341,0.09309489,65888.0,65887.0,1.33136891]
[1721757210556,0.09309489,65888.0,65887.0,1.42542902]
[1721757211918,0.001,65888.0,65887.0,1.42542902]
[1721757214863,0.00188,65889.0,65888.0,1.065407]
[1721757215039,0.00188,65889.0,65888.0,1.47644967]
[1721757216569,0.00088,65889.0,65888.0,1.47644967]
[1721757216766,0.00188,65889.0,65888.0,1.48710448]
[1721757217372,0.03464033,65889.0,65888.0,1.48710448]
[1721757217575,0.03564033,65889.0,65888.0,1.49610448]
[1721757218914,0.03564033,65889.0,65888.0,1.34914183]
[1721757219859,0.03564033,65889.0,65888.0,1.34957612]
[1721757220064,0.03564033,65889.0,65888.0,1.04603112]
[1721757220294,0.03564033,65889.0,65888.0,0.43894112]
[1721757220517,0.03564033,65889.0,65888.0,0.28716912]
[1721757220751,0.03564033,65889.0,65888.0,0.74248612]
[1721757222412,0.03564033,65889.0,65888.0,0.43894112]
[1721757222632,0.03564033,65889.0,65888.0,0.74248612]
[1721757222777,0.03564033,65889.0,65888.0,0.43894112]
[1721757223015,0.23521033,65889.0,65888.0,0.19201991]
[1721757223155,0.23521033,65889.0,65888.0,0.28739116]
[1721757223814,0.53875033,65889.0,65888.0,0.11737125]
[1721757224042,0.84229033,65889.0,65888.0,0.11737125]
[1721757224859,0.84179033,65889.0,65888.0,0.11737125]
[1721757225165,0.23471033,65889.0,65888.0,0.11737125]
[1721757225310,0.53825033,65889.0,65888.0,0.11737125]
[1721757225920,0.53825033,65889.0,65887.0,0.000924]
[1721757225921,0.151772,65888.0,65887.0,0.000924]
[1721757226145,0.23233233,65888.0,65887.0,0.000924]
[1721757226305,0.53587733,65888.0,65887.0,0.000924]
[1721757227265,0.23333233,65888.0,65887.0,0.011924]
[1721757227485,0.23433233,65888.0,65887.0,0.044924]
[1721757227620,0.23433233,65888.0,65887.0,0.34371891]
[1721757227621,0.08256033,65888.0,65887.0,0.34371891]
[1721757227821,0.08256033,65888.0,65887.0,0.68246896]
[1721757228060,0.0498,65888.0,65887.0,0.98601896]
[1721757228260,0.0498,65888.0,65887.0,1.43236896]
[1721757228261,0.002,65888.0,65887.0,1.43236896]